fUST/lending_fUST_20250627
["ID","MTS","AMOUNT","RATE_DAILY","PERIOD"]
[368000753,1750989051909,-167157.67514763,0.0002188,5]
[368000772,1750989052081,-318.26,0.0002188,5]
[368000774,1750989052094,-21972.93159951,0.0002188,5]
[368000776,1750989052105,-151.0,0.0002188,2]
[368000778,1750989052114,-151.0,0.0002188,2]
[368000780,1750989052123,-151.0,0.0002188,2]
[368000782,1750989052133,-251.7745,0.0002188,2]
[368000784,1750989052142,-183.374458,0.0002188,2]
[368000786,1750989052151,-215.131489,0.0002188,2]
[368000788,1750989052161,-1000.0,0.0002188,5]
[368000790,1750989052170,-151.0,0.00021888,4]
[368000792,1750989052180,-150.0,0.00021894,2]
[368000794,1750989052189,-2559.0,0.000219,2]
[368000796,1750989052199,-2559.0,0.000219,2]
[368000798,1750989052208,-2559.0,0.000219,2]
[368000800,1750989052217,-2559.0,0.000219,2]
[368000802,1750989052226,-2559.0,0.000219,2]
[368000804,1750989052235,-2559.0,0.000219,2]
[368000806,1750989052244,-2559.0,0.000219,2]
[368000808,1750989052254,-2559.0,0.000219,2]
[368000810,1750989052263,-2559.0,0.000219,2]
[368000812,1750989052272,-2559.0,0.000219,2]
[368000814,1750989052282,-2506.8,0.000219,2]
[368000816,1750989052292,-1000.0,0.000219,5]
[368000818,1750989052302,-194.99329083,0.00021901,2]
[368000820,1750989052312,-460.0,0.00021901,2]
[368000822,1750989052321,-500.0,0.00021917,2]
[368000824,1750989052330,-500.0,0.00021917,2]
[368000826,1750989052340,-500.0,0.00021917,2]
[368000828,1750989052350,-500.0,0.00021917,2]
[368000830,1750989052359,-500.0,0.00021917,2]
[368000832,1750989052368,-500.0,0.00021917,2]
[368000834,1750989052377,-500.0,0.00021917,2]
[368000836,1750989052386,-576.62221055,0.00021917,2]
[368000838,1750989052396,-485.61,0.00021917,2]
[368000840,1750989052406,-515.69,0.00021917,2]
[368000842,1750989052415,-682.25,0.00021917,2]
[368000844,1750989052424,-592.74,0.00021917,2]
[368000846,1750989052434,-460.0,0.00021917,2]
[368000848,1750989052443,-460.0,0.00021917,2]
[368000850,1750989052452,-510.3301857,0.00021917,2]
[368000852,1750989052462,-500.0,0.00021917,2]
[368000854,1750989052471,-503.29694639,0.00021917,2]
[368000856,1750989052480,-2435.99,0.00021917,2]
[368000858,1750989052493,-460.0,0.00021917,2]
[368000860,1750989052502,-2999.72,0.00021917,2]
[368000862,1750989052511,-289.911736,0.00021918,2]
[368000864,1750989052520,-150.0,0.00021918,2]
[368000866,1750989052531,-1000.0,0.0002192,5]
[368000868,1750989052540,-1000.0,0.0002194,5]
[368000869,1750989052550,-1000.0,0.0002196,5]
[368000872,1750989052560,-7363.35940528,0.00021969,6]
[368000874,1750989052570,-2000.0,0.00021972,2]
[368000875,1750989052579,-500.0,0.00021973,2]
[368000877,1750989052589,-500.0,0.00021973,2]
[368000880,1750989052599,-500.0,0.00021973,2]
[368000881,1750989052608,-500.0,0.00021973,2]
[368000884,1750989052618,-362.85920489,0.00021973,2]
[368000885,1750989052627,-500.0,0.00021973,2]
[368000887,1750989052636,-500.0,0.00021973,2]
[368000889,1750989052646,-500.11056611,0.00021973,2]
[368000891,1750989052657,-500.0,0.00021973,2]
[368000893,1750989052666,-500.0,0.00021973,2]
[368000895,1750989052675,-501.24220938,0.00021973,2]
[368000897,1750989052684,-534.80959161,0.00021973,2]
[368000899,1750989052693,-500.0,0.00021973,2]
[368000901,1750989052703,-519.79745668,0.00021973,2]
[368000903,1750989052712,-500.0,0.00021973,2]
[368000905,1750989052721,-501.27182914,0.00021973,2]
[368000907,1750989052731,-500.0,0.00021973,2]
[368000909,1750989052740,-500.0,0.00021973,2]
[368000911,1750989052749,-500.9508428,0.00021973,2]
[368000913,1750989052758,-500.0,0.00021973,2]
[368000915,1750989052767,-501.93011396,0.00021973,2]
[368000917,1750989052776,-500.72809544,0.00021973,2]
[368000919,1750989052786,-500.0,0.00021973,2]
[368000921,1750989052795,-504.00767192,0.00021973,2]
[368000923,1750989052804,-500.0,0.00021973,2]
[368000925,1750989052814,-500.91631833,0.00021973,2]
[368000927,1750989052823,-500.38360044,0.00021973,2]
[368000929,1750989052833,-500.0,0.00021973,2]
[368000931,1750989052842,-500.51131482,0.00021973,2]
[368000933,1750989052851,-500.0,0.00021973,2]
[368000935,1750989052860,-153.2226817,0.00021973,2]
[368000937,1750989052869,-503.43217781,0.00021973,2]
[368000939,1750989052879,-500.41330267,0.00021973,2]
[368000941,1750989052888,-500.0,0.00021973,2]
[368000943,1750989052898,-517.36377545,0.00021973,2]
[368000945,1750989052906,-501.03495591,0.00021973,2]
[368000947,1750989052915,-500.33890249,0.00021973,2]
[368000949,1750989052925,-501.02233523,0.00021973,2]
[368000951,1750989052934,-600.0,0.00021973,2]
[368000953,1750989052943,-500.98732874,0.00021973,2]
[368000966,1750989053060,-500.90826119,0.00021973,2]
[368000969,1750989053071,-500.0,0.00021973,2]
[368000971,1750989053080,-500.3255262,0.00021973,2]
[368000973,1750989053090,-500.0,0.00021973,2]
[368000975,1750989053100,-500.9057363,0.00021973,2]
[368000977,1750989053109,-500.80439238,0.00021973,2]
[368000979,1750989053118,-500.74876351,0.00021973,2]
[368000981,1750989053127,-465.63484146,0.00021973,2]
[368000983,1750989053137,-500.0,0.00021973,2]
[368000985,1750989053146,-500.89759569,0.00021973,2]
[368000987,1750989053156,-500.0,0.00021973,2]
[368000989,1750989053165,-152.779359,0.0002198,5]
[368000991,1750989053175,-170.650823,0.0002198,5]
[368000993,1750989053184,-1000.0,0.0002198,5]
[368000995,1750989053193,-165.402702,0.0002198,5]
[368000997,1750989053203,-460.0,0.00021995,2]
[368000999,1750989053213,-460.0,0.00021995,2]
[368001001,1750989053224,-460.0,0.00021995,2]
[368001003,1750989053233,-1061.16,0.00021995,2]
[368001005,1750989053242,-2254.67,0.00021995,2]
[368001007,1750989053252,-597.41,0.00021995,2]
[368001009,1750989053261,-677.51,0.00021995,2]
[368001011,1750989053271,-895.49,0.00021995,2]
[368001013,1750989053280,-2323.68,0.00021995,2]
[368001015,1750989053289,-2000.89,0.00021995,2]
[368001016,1750989053301,-594.98,0.00021995,2]
[368001018,1750989053311,-460.0,0.00021995,2]
[368001020,1750989053321,-1696.3,0.00021995,2]
[368001022,1750989053331,-810.43,0.00021995,2]
[368001024,1750989053341,-994.27,0.00021995,2]
[368001026,1750989053351,-1023.35,0.00021995,2]
[368001028,1750989053364,-686.32,0.00021995,2]
[368001030,1750989053375,-460.0,0.00021995,2]
[368001032,1750989053386,-460.0,0.00021997,2]
[368001034,1750989053397,-460.0,0.00021997,2]
[368001036,1750989053408,-664.2,0.00021997,2]
[368001038,1750989053418,-500.13,0.00021997,2]
[368001040,1750989053429,-460.0,0.00021997,2]
[368001042,1750989053440,-460.0,0.00021997,2]
[368001044,1750989053450,-472.16,0.00021997,2]
[368001046,1750989053460,-460.0,0.00021997,2]
[368001048,1750989053470,-460.0,0.00021997,2]
[368001050,1750989053480,-494.7,0.00021997,2]
[368001052,1750989053493,-460.0,0.00021997,2]
[368001054,1750989053502,-460.0,0.00021997,2]
[368001056,1750989053512,-574.63,0.00021997,2]
[368001058,1750989053522,-788.31,0.00021997,2]
[368001060,1750989053532,-800.34,0.00021997,2]
[368001062,1750989053542,-463.32,0.00021997,2]
[368001064,1750989053559,-460.0,0.00021997,2]
[368001066,1750989053568,-1048.54,0.00021997,2]
[368001068,1750989053578,-862.03,0.00021997,2]
[368001070,1750989053589,-560.05,0.00021997,2]
[368001072,1750989053600,-740.86,0.00021997,2]
[368001075,1750989053611,-1344.07,0.00021997,2]
[368001076,1750989053619,-460.0,0.00021997,2]
[368001078,1750989053629,-979.43,0.00021997,2]
[368001080,1750989053638,-895.41,0.00021997,2]
[368001082,1750989053648,-460.0,0.00021997,2]
[368001084,1750989053658,-745.27,0.00021997,2]
[368001086,1750989053669,-460.0,0.00021997,2]
[368001087,1750989053678,-843.89,0.00021997,2]
[368001088,1750989053688,-691.76,0.00021997,2]
[368001089,1750989053697,-460.0,0.00021997,2]
[368001090,1750989053707,-506.39,0.00021997,2]
[368001091,1750989053716,-460.0,0.00021997,2]
[368001092,1750989053727,-1172.74,0.00021997,2]
[368001093,1750989053736,-500.76,0.00021998,2]
[368001094,1750989053745,-503.17,0.00021998,2]
[368001095,1750989053754,-565.36,0.00021998,2]
[368001096,1750989053764,-5304.87,0.00021998,2]
[368001097,1750989053773,-569.04,0.00021998,2]
[368001098,1750989053783,-1077.24,0.00021998,2]
[368001099,1750989053791,-460.0,0.00021998,2]
[368001100,1750989053803,-850.44,0.00021998,2]
[368001101,1750989053812,-2075.5,0.00021998,2]
[368001102,1750989053822,-1081.62,0.00021998,2]
[368001103,1750989053831,-913.67,0.00021998,2]
[368001104,1750989053840,-460.0,0.00021998,2]
[368001106,1750989053850,-460.0,0.00021999,2]
[368001108,1750989053860,-163.45134319,0.00021999,2]
[368001110,1750989053869,-460.0,0.00021999,2]
[368001112,1750989053879,-460.0,0.00021999,2]
[368001114,1750989053889,-460.0,0.00021999,2]
[368001116,1750989053898,-460.0,0.00021999,2]
[368001118,1750989053908,-624.06,0.00021999,2]
[368001120,1750989053917,-460.0,0.00021999,2]
[368001122,1750989053926,-580.09,0.00021999,2]
[368001124,1750989053936,-460.0,0.00021999,2]
[368001126,1750989053946,-898.76,0.00021999,2]
[368001128,1750989053955,-601.84,0.00021999,2]
[368001130,1750989053964,-460.0,0.00021999,2]
[368001132,1750989053974,-687.03,0.00021999,2]
[368001134,1750989053984,-463.8,0.00021999,2]
[368001135,1750989053993,-460.0,0.00021999,2]
[368001139,1750989054011,-630.25,0.00021999,2]
[368001141,1750989054030,-186.85443736,0.00021999,2]
[368001144,1750989054044,-460.0,0.00021999,2]
[368001147,1750989054062,-460.0,0.00021999,2]
[368001149,1750989054079,-717.1,0.00021999,2]
[368001152,1750989054095,-883.49,0.00021999,2]
[368001155,1750989054111,-460.0,0.00021999,2]
[368001157,1750989054127,-460.0,0.00021999,2]
[368001160,1750989054142,-460.0,0.00021999,2]
[368001162,1750989054158,-652.23,0.00021999,2]
[368001165,1750989054170,-460.0,0.00021999,2]
[368001167,1750989054184,-460.0,0.00021999,2]
[368001170,1750989054200,-728.81,0.00021999,2]
[368001173,1750989054216,-1190.85,0.00021999,2]
[368001175,1750989054233,-228.1568904,0.00021999,2]
[368001178,1750989054249,-687.22,0.00021999,2]
[368001180,1750989054261,-669.92,0.00021999,2]
[368001183,1750989054276,-460.0,0.00021999,2]
[368001185,1750989054293,-1077.08,0.00021999,2]
[368001188,1750989054308,-493.99,0.00021999,2]
[368001190,1750989054322,-460.0,0.00021999,2]
[368001193,1750989054335,-1386.2,0.00021999,2]
[368001195,1750989054347,-646.42,0.00021999,2]
[368001197,1750989054360,-460.0,0.00021999,2]
[368001200,1750989054373,-500.0,0.00022,8]
[368001202,1750989054386,-1505.06209678,0.00022,7]
[368001205,1750989054400,-500.0,0.00022,8]
[368001207,1750989054414,-127669.51425513,0.00022,2]
[368001210,1750989054432,-3480.83790388,0.00022,2]
[368001213,1750989054456,-425.97930642,0.00022,2]
[368001248,1750989054791,-722.65194822,0.00021998,2]
[368001250,1750989054805,-1477.34805178,0.00021998,2]
[368001252,1750989054814,-12947.24472658,0.00022,2]
[368001273,1750989055010,-18.40393763,0.00019806,2]
[368001275,1750989055022,-147.09975037,0.00019806,2]
[368001277,1750989055031,-165.503688,0.000199,2]
[368001279,1750989055040,-165.503688,0.00020081,2]
[368001281,1750989055050,-165.503688,0.00020338,2]
[368001283,1750989055060,-165.503688,0.00020356,2]
[368001285,1750989055069,-2396.59,0.00020726,10]
[368001287,1750989055078,-10744.497483,0.00022,2]
[368001334,1750989055532,160.29,0.00024658,120]
[368001338,1750989055555,-444.56390989,0.00019178,2]
[368001340,1750989055566,-299.47994955,0.00019531,2]
[368001342,1750989055578,-166.84811533,0.00019531,2]
[368001344,1750989055587,-843.10188467,0.00019533,2]
[368001346,1750989055598,-156.89811533,0.00019533,2]
[368001348,1750989055607,-884.14188467,0.00019534,2]
[368001350,1750989055618,-115.85811533,0.00019534,2]
[368001352,1750989055627,-1000.0,0.00019534,2]
[368001354,1750989055636,-1000.0,0.00019535,2]
[368001356,1750989055645,-1000.0,0.00019535,2]
[368001358,1750989055655,-165.503688,0.00019806,2]
[368001360,1750989055665,-165.503688,0.000199,2]
[368001362,1750989055674,-165.503688,0.00020081,2]
[368001364,1750989055684,-165.503688,0.00020629,2]
[368001366,1750989055693,-165.503688,0.00020901,2]
[368001368,1750989055703,-165.503688,0.00020911,2]
[368001370,1750989055712,-165.503688,0.00021177,2]
[368001372,1750989055721,-165.503688,0.00021339,2]
[368001374,1750989055731,-289.911736,0.00021918,2]
[368001376,1750989055740,-801.217,0.00021998,2]
[368001378,1750989055750,-20356.75069749,0.00022,2]
[368001381,1750989055761,-32430.25572825,0.00022,2]
[368001383,1750989055773,-25378.493,0.00022,2]
[368001385,1750989055784,-16776.39597646,0.00022,2]
[368001387,1750989055795,-13449.43631778,0.00022,2]
[368002432,1750989709648,600.0,0.00023,30]
[368002433,1750989947128,-160.0,0.00018804,2]
[368002434,1750989947150,-160.0,0.00018806,2]
[368002435,1750989947172,-300.0,0.00018813,2]
[368002436,1750989947195,-1149.48791159,0.00018814,2]
[368002437,1750990052093,-549.46481165,0.00018813,2]
[368002438,1750990052114,-23595.32208841,0.00018814,2]
[368002439,1750990052135,-1224.47283426,0.00019077,2]
[368002440,1750990052156,-491.85,0.00019168,3]
[368002441,1750990052176,-700.65,0.00019168,3]
[368002442,1750990052196,-350.33,0.00019168,3]
[368002443,1750990052218,-175.16,0.00019168,3]
[368002444,1750990052239,-525.52,0.00019168,3]
[368002445,1750990052258,-500.0,0.00019173,2]
[368002446,1750990052278,-501.11637594,0.00019173,2]
[368002447,1750990052298,-500.0,0.00019173,2]
[368002448,1750990052318,-500.90268572,0.00019173,2]
[368002449,1750990052338,-411.31885303,0.00019177,2]
[368002450,1750990052358,-32315.52026611,0.00019177,2]
[368002451,1750990155219,-160.0,0.00018812,2]
[368002452,1750990155240,-160.0,0.00018812,2]
[368002453,1750990155261,-1000.0,0.00018999,2]
[368002454,1750990155281,-500.43104561,0.00019173,2]
[368002455,1750990155302,-503.32406499,0.00019173,2]
[368002456,1750990155324,-500.0,0.00019173,2]
[368002457,1750990155348,-300.0,0.00019175,2]
[368002458,1750990155370,-500.0,0.00019176,2]
[368002459,1750990155391,-500.0,0.00019176,2]
[368002460,1750990155416,-500.0,0.00019176,2]
[368002461,1750990155437,-500.0,0.00019176,2]
[368002462,1750990155458,-250.16357554,0.00019176,2]
[368002463,1750990155480,-500.0,0.00019176,2]
[368002464,1750990155501,-178.96501656,0.00019176,2]
[368002465,1750990155525,-500.0,0.00019176,2]
[368002466,1750990155548,-500.0,0.00019176,2]
[368002467,1750990155569,-500.0,0.00019176,2]
[368002468,1750990155589,-544.09744445,0.00019176,2]
[368002469,1750990155611,-200.72895214,0.00019176,2]
[368002470,1750990155634,-500.0,0.00019176,2]
[368002471,1750990155655,-500.0,0.00019176,2]
[368002472,1750990155676,-500.0,0.00019176,2]
[368002473,1750990155871,-466.5801496,0.00019176,2]
[368002474,1750990155894,-500.0,0.00019176,2]
[368002475,1750990155917,-500.0,0.00019176,2]
[368002476,1750990155938,-292.48977567,0.00019176,2]
[368002477,1750990155961,-500.0,0.00019176,2]
[368002478,1750990155984,-500.0,0.00019176,2]
[368002479,1750990156007,-500.0,0.00019176,2]
[368002480,1750990156032,-500.0,0.00019176,2]
[368002481,1750990156052,-500.0,0.00019176,2]
[368002482,1750990156074,-500.0,0.00019176,2]
[368002483,1750990156097,-500.0,0.00019176,2]
[368002484,1750990156120,-500.0,0.00019176,2]
[368002485,1750990156140,-500.0,0.00019176,2]
[368002486,1750990156160,-500.0,0.00019176,2]
[368002487,1750990156180,-500.0,0.00019176,2]
[368002488,1750990156201,-500.0,0.00019176,2]
[368002489,1750990156224,-500.0,0.00019176,2]
[368002490,1750990156245,-171.1247472,0.00019176,2]
[368002491,1750990156266,-500.0,0.00019176,2]
[368002492,1750990156287,-500.0,0.00019176,2]
[368002493,1750990156308,-500.0,0.00019176,2]
[368002494,1750990156331,-500.0,0.00019176,2]
[368002495,1750990156352,-500.0,0.00019176,2]
[368002496,1750990156373,-500.0,0.00019176,2]
[368002497,1750990156396,-500.0,0.00019176,2]
[368002498,1750990156416,-500.0,0.00019176,2]
[368002499,1750990156437,-500.0,0.00019176,2]
[368002500,1750990156457,-465.59106108,0.00019176,2]
[368002501,1750990156477,-500.0,0.00019176,2]
[368002502,1750990156499,-500.0,0.00019176,2]
[368002503,1750990156520,-500.0,0.00019176,2]
[368002504,1750990156540,-500.0,0.00019176,2]
[368002505,1750990156560,-500.0,0.00019176,2]
[368002506,1750990156582,-500.0,0.00019176,2]
[368002507,1750990156603,-500.0,0.00019176,2]
[368002508,1750990156623,-500.0,0.00019176,2]
[368002509,1750990156644,-500.0,0.00019176,2]
[368002510,1750990156666,-500.0,0.00019176,2]
[368002511,1750990156694,-500.0,0.00019176,2]
[368002512,1750990156717,-500.0,0.00019176,2]
[368002513,1750990156741,-500.0,0.00019176,2]
[368002514,1750990156762,-500.0,0.00019176,2]
[368002515,1750990156784,-500.0,0.00019176,2]
[368002516,1750990156806,-500.0,0.00019176,2]
[368002517,1750990156828,-500.0,0.00019176,2]
[368002518,1750990156848,-500.0,0.00019176,2]
[368002519,1750990156870,-500.0,0.00019176,2]
[368002520,1750990156890,-500.0,0.00019176,2]
[368002521,1750990156914,-500.0,0.00019176,2]
[368002522,1750990156935,-500.0,0.00019176,2]
[368002523,1750990156956,-500.0,0.00019176,2]
[368002524,1750990156981,-500.0,0.00019176,2]
[368002525,1750990157004,-211.40057274,0.00019176,2]
[368002526,1750990157025,-500.0,0.00019176,2]
[368002527,1750990157049,-500.0,0.00019176,2]
[368002528,1750990157069,-500.0,0.00019176,2]
[368002529,1750990157090,-500.0,0.00019176,2]
[368002530,1750990157110,-500.0,0.00019176,2]
[368002531,1750990157131,-500.0,0.00019176,2]
[368002532,1750990157152,-500.0,0.00019176,2]
[368002533,1750990157175,-500.0,0.00019176,2]
[368002534,1750990157197,-500.0,0.00019176,2]
[368002535,1750990157222,-500.0,0.00019176,2]
[368002536,1750990157244,-500.0,0.00019176,2]
[368002537,1750990157266,-500.0,0.00019176,2]
[368002538,1750990157290,-500.0,0.00019176,2]
[368002539,1750990157314,-500.0,0.00019176,2]
[368002540,1750990157335,-500.0,0.00019176,2]
[368002541,1750990157362,-500.0,0.00019176,2]
[368002542,1750990157385,-500.0,0.00019176,2]
[368002543,1750990157408,-500.0,0.00019176,2]
[368002544,1750990157432,-500.0,0.00019176,2]
[368002545,1750990157454,-500.0,0.00019176,2]
[368002546,1750990157477,-500.0,0.00019176,2]
[368002547,1750990157498,-224.84166001,0.00019176,2]
[368002548,1750990157521,-500.0,0.00019176,2]
[368002549,1750990157546,-500.0,0.00019176,2]
[368002550,1750990157569,-635.65762664,0.00019176,2]
[368002551,1750990157592,-500.0,0.00019176,2]
[368002552,1750990157614,-500.0,0.00019176,2]
[368002553,1750990157636,-500.0,0.00019176,2]
[368002554,1750990157658,-500.0,0.00019176,2]
[368002555,1750990157680,-600.0,0.00019176,2]
[368002556,1750990157702,-500.0,0.00019176,2]
[368002557,1750990157727,-500.0,0.00019176,2]
[368002558,1750990157749,-480.25399768,0.00019176,2]
[368002559,1750990157771,-500.0,0.00019176,2]
[368002560,1750990157796,-500.0,0.00019176,2]
[368002561,1750990157818,-500.0,0.00019176,2]
[368002562,1750990157841,-500.0,0.00019176,2]
[368002563,1750990157866,-500.0,0.00019176,2]
[368002564,1750990157888,-500.0,0.00019176,2]
[368002565,1750990157910,-500.0,0.00019176,2]
[368002566,1750990157934,-500.0,0.00019176,2]
[368002567,1750990157960,-500.0,0.00019176,2]
[368002568,1750990157982,-500.0,0.00019176,2]
[368002569,1750990158005,-500.0,0.00019176,2]
[368002570,1750990158028,-500.0,0.00019176,2]
[368002571,1750990158053,-500.0,0.00019176,2]
[368002572,1750990158076,-500.0,0.00019176,2]
[368002573,1750990158098,-500.0,0.00019176,2]
[368002574,1750990158122,-292.90633703,0.00019176,2]
[368002575,1750990158149,-500.0,0.00019176,2]
[368002576,1750990158176,-500.0,0.00019176,2]
[368002577,1750990158204,-500.0,0.00019176,2]
[368002578,1750990158230,-500.0,0.00019176,2]
[368002579,1750990158255,-500.0,0.00019176,2]
[368002580,1750990158278,-500.0,0.00019176,2]
[368002581,1750990158306,-500.0,0.00019176,2]
[368002582,1750990158330,-17684.47973389,0.00019177,2]
[368002583,1750990158351,-500.0,0.00019177,2]
[368002584,1750990158373,-472.470462,0.00019178,2]
[368002585,1750990158395,-411.44467223,0.00019178,2]
[368002586,1750990158417,-467.29409133,0.00019178,2]
[368002587,1750990158441,-460.0,0.00019178,2]
[368002588,1750990158463,-460.0,0.00019178,2]
[368002589,1750990158484,-461.13946558,0.00019178,2]
[368002590,1750990158505,-460.0,0.00019178,2]
[368002591,1750990158528,-460.42565365,0.00019178,2]
[368002592,1750990158551,-196.89272147,0.00019178,2]
[368002593,1750990158572,-460.0,0.00019178,2]
[368002594,1750990158593,-431.09268553,0.00019178,2]
[368002595,1750990158616,-460.7512832,0.00019178,2]
[368002596,1750990158644,-460.0,0.00019178,2]
[368002597,1750990158668,-460.0,0.00019178,2]
[368002598,1750990158690,-460.0,0.00019178,2]
[368002599,1750990158714,-465.18936926,0.00019178,2]
[368002600,1750990158736,-446.57693531,0.00019178,2]
[368002601,1750990158758,-464.24513772,0.00019178,2]
[368002602,1750990158782,-460.0,0.00019178,2]
[368002603,1750990158807,-460.0,0.00019178,2]
[368002604,1750990158829,-460.0,0.00019178,2]
[368002605,1750990158851,-460.0,0.00019178,2]
[368002606,1750990158873,-460.0,0.00019178,2]
[368002607,1750990158895,-408.29398825,0.00019178,2]
[368002608,1750990158916,-460.0,0.00019178,2]
[368002609,1750990158939,-460.0,0.00019178,2]
[368002610,1750990158964,-461.41312145,0.00019178,2]
[368002611,1750990158986,-460.0,0.00019178,2]
[368002612,1750990159010,-460.0,0.00019178,2]
[368002613,1750990159033,-460.63177515,0.00019178,2]
[368002614,1750990159060,-461.67263609,0.00019178,2]
[368002615,1750990159083,-461.85085027,0.00019178,2]
[368002616,1750990159105,-414.36834552,0.00019178,2]
[368002617,1750990159127,-461.06394306,0.00019178,2]
[368002618,1750990159150,-460.0,0.00019178,2]
[368002619,1750990159173,-624.20627331,0.00019178,2]
[368002620,1750990159194,-503.43826082,0.00019178,2]
[368002621,1750990159218,-775.78,0.00019178,2]
[368002622,1750990159242,-460.0,0.00019178,2]
[368002623,1750990159265,-460.0,0.00019178,2]
[368002624,1750990159287,-460.0,0.00019178,2]
[368002625,1750990159312,-460.0,0.00019178,2]
[368002626,1750990159336,-460.0,0.00019178,2]
[368002627,1750990159358,-460.0,0.00019178,2]
[368002628,1750990159380,-357.30282231,0.00019178,2]
[368002629,1750990159403,-461.878899,0.00019178,2]
[368002630,1750990159424,-462.15155449,0.00019178,2]
[368002631,1750990159446,-460.0,0.00019178,2]
[368002632,1750990159475,-460.0,0.00019178,2]
[368002633,1750990159496,-461.27072419,0.00019178,2]
[368002634,1750990159517,-460.0,0.00019178,2]
[368002635,1750990159539,-461.18437299,0.00019178,2]
[368002636,1750990159563,-460.0,0.00019178,2]
[368002637,1750990159585,-464.15223196,0.00019178,2]
[368002638,1750990159607,-460.0,0.00019178,2]
[368002639,1750990159628,-461.80433487,0.00019178,2]
[368002640,1750990159649,-460.0,0.00019178,2]
[368002641,1750990159671,-460.0,0.00019178,2]
[368002642,1750990159692,-460.0,0.00019178,2]
[368002643,1750990159714,-500.0,0.00019178,2]
[368002644,1750990159735,-676.69,0.00019178,2]
[368002645,1750990159757,-460.0,0.00019178,2]
[368002646,1750990159787,-280.19785712,0.00019178,2]
[368002647,1750990159813,-460.07216323,0.00019178,2]
[368002648,1750990159835,-619.16,0.00019178,2]
[368002649,1750990159857,-460.0,0.00019178,2]
[368002650,1750990159878,-218.09063573,0.00019178,2]
[368002651,1750990160108,-460.0,0.00019178,2]
[368002652,1750990160129,-460.0,0.00019178,2]
[368002653,1750990160148,-405.56005835,0.00019178,2]
[368002654,1750990160169,-365.63422768,0.00019178,2]
[368002655,1750990160189,-460.0,0.00019178,2]
[368002656,1750990160209,-569.40487516,0.00019178,2]
[368002657,1750990160229,-460.0,0.00019178,2]
[368002658,1750990160250,-460.0,0.00019178,2]
[368002659,1750990160271,-460.0,0.00019178,2]
[368002660,1750990160297,-460.0,0.00019178,2]
[368002661,1750990160318,-460.0,0.00019178,2]
[368002662,1750990160340,-460.0,0.00019178,2]
[368002663,1750990160361,-463.43981112,0.00019178,2]
[368002664,1750990160382,-460.0,0.00019178,2]
[368002665,1750990160404,-445.31322624,0.00019178,2]
[368002666,1750990160429,-505.43,0.00019178,2]
[368002667,1750990160451,-460.0,0.00019178,2]
[368002668,1750990160472,-460.0,0.00019178,2]
[368002669,1750990160492,-460.0,0.00019178,2]
[368002670,1750990160512,-443.06100767,0.00019178,2]
[368002671,1750990160532,-460.0,0.00019178,2]
[368002672,1750990160554,-467.59045452,0.00019178,2]
[368002673,1750990160573,-460.0,0.00019178,2]
[368002674,1750990160594,-460.0,0.00019178,2]
[368002675,1750990160615,-460.0,0.00019178,2]
[368002676,1750990160636,-496.88,0.00019178,2]